bitfinex/quotes_BTCUSD_20260104
["timestamp","ask_amount","ask_price","bid_price","bid_amount"]
[1767519752520,0.06566855,91368.0,91365.0,0.06567013]
[1767519753198,0.06566751,91370.0,91368.0,0.000999]
[1767519753401,0.06566751,91370.0,91368.0,0.00095382]
[1767519753618,0.06566751,91370.0,91366.0,0.06566994]
[1767519753619,0.00050259,91373.0,91370.0,0.01094451]
[1767519753815,0.00050259,91373.0,91371.0,0.05472137]
[1767519754014,0.00050259,91373.0,91372.0,0.05467617]
[1767519754325,5.9e-07,91373.0,91371.0,0.05472137]
[1767519754947,5.9e-07,91373.0,91372.0,0.05472135]
[1767519755143,5.9e-07,91373.0,91371.0,0.05472137]
[1767519755346,5.9e-07,91373.0,91372.0,0.05472135]
[1767519757722,5.9e-07,91373.0,91372.0,0.05467728]
[1767519760726,0.02188,91376.0,91375.0,0.05471956]
[1767519760913,0.02188,91376.0,91375.0,0.05417256]
[1767519761843,0.02188,91376.0,91375.0,0.09978436]
[1767519761975,0.020881,91376.0,91375.0,0.09978436]
[1767519762184,0.0001504,91379.0,91378.0,0.05471776]
[1767519762376,0.0001504,91379.0,91378.0,0.0546737]
[1767519762597,0.0001504,91379.0,91378.0,0.0536747]
[1767519763006,0.0001504,91379.0,91377.0,0.05471814]
[1767519764329,0.05471666,91380.0,91377.0,0.05471814]
[1767519764330,0.06565997,91380.0,91379.0,0.0456118]
[1767519764508,0.06565997,91380.0,91377.0,0.01094367]
[1767519767083,0.06565997,91380.0,91378.0,0.0456118]
[1767519768089,0.01094331,91380.0,91378.0,0.0456118]
[1767519768317,0.0001504,91379.0,91377.0,0.06551163]
[1767519768591,0.01094331,91380.0,91379.0,0.00015]
[1767519768960,0.06566005,91380.0,91378.0,0.0456118]
[1767519769165,0.06566005,91380.0,91377.0,0.06551163]
[1767519769372,0.0875392,91381.0,91377.0,0.06551163]
[1767519769564,0.0875392,91381.0,91376.0,0.06566264]
[1767519769765,0.01094331,91380.0,91376.0,0.06566264]
[1767519770209,0.06566011,91380.0,91376.0,0.06566264]
[1767519771285,0.05471664,91380.0,91376.0,0.06566264]
[1767519771493,0.08753959,91381.0,91380.0,0.000999]
[1767519771892,0.02188,91381.0,91380.0,0.000999]
[1767519772075,0.02188,91381.0,91378.0,0.0656611]
[1767519772464,0.05471694,91380.0,91377.0,0.01094367]
[1767519772668,0.06566025,91380.0,91376.0,0.06561839]
[1767519772901,0.05471728,91379.0,91376.0,0.06561839]
[1767519773308,0.06566025,91380.0,91376.0,0.06561836]
[1767519774026,0.06466125,91380.0,91376.0,0.06561836]
[1767519774178,0.01094331,91380.0,91377.0,0.06566161]
[1767519774396,0.06565895,91382.0,91381.0,0.0456118]
[1767519774594,0.06565895,91382.0,91378.0,0.01094355]
[1767519774595,0.054716,91381.0,91378.0,0.01094355]
[1767519774819,0.03282247,91387.0,91380.0,0.05471627]
[1767519775020,0.05471473,91385.0,91381.0,0.05471584]
[1767519775218,0.05471473,91385.0,91381.0,0.06565903]
[1767519775413,0.05471473,91385.0,91384.0,0.000999]
[1767519775414,0.05471376,91385.0,91384.0,0.000999]
[1767519775649,0.05471376,91385.0,91384.0,0.00095494]
[1767519775845,0.06565717,91384.0,91381.0,0.01094319]
[1767519776010,0.06565717,91384.0,91380.0,0.06565985]
[1767519776213,0.06565772,91383.0,91379.0,0.06565955]
[1767519776414,0.06565849,91382.0,91378.0,0.06566114]
[1767519776727,0.06565675,91385.0,91381.0,0.05471563]
[1767519776943,0.06565675,91385.0,91380.0,0.01094331]
[1767519776944,0.01094223,91389.0,91386.0,0.01094259]
[1767519777144,0.01094223,91389.0,91382.0,0.22980295]
[1767519777145,0.01105057,91389.0,91382.0,0.22980295]
[1767519777372,0.01105057,91389.0,91383.0,0.05471477]
[1767519777373,0.06576205,91389.0,91383.0,0.05471477]
[1767519777573,0.06576205,91389.0,91384.0,0.05471359]
[1767519777817,0.06576205,91389.0,91385.0,0.05471351]
[1767519777933,0.01105057,91389.0,91386.0,0.01094259]
[1767519778139,0.01105057,91389.0,91386.0,0.06565537]
[1767519778364,0.06576189,91389.0,91385.0,0.06561216]
[1767519778762,0.049807,91388.0,91382.0,0.15168859]
[1767519778961,0.049807,91388.0,91382.0,0.11937139]
[1767519779180,0.06576189,91389.0,91385.0,0.01094271]
[1767519780389,0.05471187,91388.0,91385.0,0.01094271]
[1767519780687,0.06576189,91389.0,91386.0,0.0493267]
[1767519781199,0.01094211,91390.0,91386.0,0.0493267]
[1767519781697,0.05471237,91387.0,91386.0,0.0393267]
[1767519782250,0.05471237,91387.0,91386.0,0.03928264]
[1767519782459,0.06565675,91385.0,91382.0,0.0493267]
[1767519782736,0.06565675,91385.0,91382.0,0.0492827]
[1767519782898,0.05471306,91386.0,91383.0,0.10404146]
[1767519783085,0.06565529,91387.0,91384.0,0.0493267]
[1767519783285,0.04609178,91386.0,91384.0,0.01094283]
[1767519783505,0.04609178,91386.0,91383.0,0.05075059]
[1767519783940,0.01094247,91387.0,91384.0,0.05471389]
[1767519784311,0.0656549,91387.0,91383.0,0.05075059]
[1767519784844,0.0656549,91387.0,91384.0,0.01094283]
[1767519786044,0.06565422,91388.0,91384.0,0.06565684]
[1767519786613,0.06565355,91389.0,91385.0,0.06565617]
[1767519787032,0.05471185,91388.0,91385.0,0.06565617]
[1767519787236,0.0656542,91388.0,91385.0,0.00994371]
[1767519787550,0.0656542,91388.0,91384.0,0.06565684]
[1767519788418,0.0156542,91388.0,91384.0,0.06565684]
[1767519788618,0.01565355,91389.0,91386.0,0.0493267]
[1767519788822,0.01094223,91389.0,91386.0,0.0493267]
[1767519789273,0.01094223,91389.0,91384.0,0.11498354]
[1767519789453,0.06565457,91388.0,91384.0,0.11498354]
[1767519789648,0.04602304,91387.0,91382.0,0.02767185]
[1767519790174,0.11167815,91387.0,91384.0,0.01094283]
[1767519790403,0.06565511,91387.0,91384.0,0.06565685]
[1767519790777,0.01094223,91389.0,91387.0,0.000999]
[1767519790778,0.06565446,91389.0,91387.0,0.000999]
[1767519790983,0.06565446,91389.0,91387.0,0.0493267]
[1767519791164,0.01565446,91389.0,91386.0,0.04928264]
[1767519791342,0.01094247,91387.0,91384.0,0.01094283]
[1767519791975,0.06565528,91387.0,91384.0,0.01094283]
[1767519792174,0.06565528,91387.0,91382.0,0.0493267]
[1767519792372,0.06565528,91387.0,91383.0,0.05471422]
[1767519792958,0.06565528,91387.0,91384.0,0.01094283]
[1767519793394,0.01094223,91389.0,91384.0,0.01094283]
[1767519793395,0.01094223,91389.0,91387.0,0.000999]
[1767519793593,0.06565465,91388.0,91384.0,0.06565678]
[1767519794695,0.06565515,91387.0,91383.0,0.06565755]
[1767519795288,0.05371348,91387.0,91384.0,0.05471302]
[1767519795492,0.06465595,91387.0,91384.0,0.05471302]
[1767519795891,0.06465595,91387.0,91383.0,0.06565761]
[1767519796485,0.06465595,91387.0,91384.0,0.06565681]
[1767519797550,0.01094247,91387.0,91384.0,0.06565681]
[1767519797694,0.06565428,91388.0,91384.0,0.06565681]
[1767519797894,0.06565494,91387.0,91384.0,0.01094283]
[1767519799637,0.06565494,91387.0,91384.0,0.06565698]
[1767519799838,0.06565494,91387.0,91384.0,0.01094283]
[1767519800477,0.000999,91384.0,91383.0,0.06565761]
[1767519800814,0.01094259,91386.0,91384.0,0.00099899]
[1767519801041,0.01087384,91386.0,91384.0,0.00099899]
[1767519801257,0.01087384,91386.0,91383.0,0.06565761]
[1767519802024,0.01094247,91387.0,91384.0,0.06565682]
[1767519802862,0.06565345,91389.0,91387.0,0.01]
[1767519803242,0.06565279,91390.0,91387.0,0.01]
[1767519803447,0.01094187,91392.0,91389.0,0.01094223]
[1767519803650,0.000999,91389.0,91388.0,0.06565368]
[1767519803852,0.000999,91389.0,91388.0,0.01094235]
[1767519804057,0.06565201,91391.0,91387.0,0.06565476]
[1767519804371,0.0547113,91389.0,91386.0,0.01094259]
[1767519804541,0.0656532,91390.0,91384.0,0.05471399]
[1767519804542,0.000999,91386.0,91384.0,0.05471399]
[1767519804737,0.000999,91386.0,91385.0,0.05471357]
[1767519805159,0.0547123,91389.0,91385.0,0.05471357]
[1767519805360,0.05471185,91388.0,91384.0,0.06565682]
[1767519805599,0.05471185,91388.0,91385.0,0.0547134]
[1767519805778,0.0656542,91388.0,91385.0,0.06565611]
[1767519805961,0.0656542,91388.0,91385.0,0.06465711]
[1767519806166,0.06565348,91389.0,91385.0,0.06465711]
[1767519806619,0.06565348,91389.0,91386.0,0.05471287]
[1767519806826,0.01094223,91389.0,91386.0,0.05471293]
[1767519806993,0.06565311,91390.0,91386.0,0.06565552]
[1767519807207,0.05344512,91390.0,91386.0,0.06565552]
[1767519807385,0.05471131,91389.0,91386.0,0.06565552]
[1767519808026,0.06438723,91390.0,91386.0,0.06565552]
[1767519808647,0.06438723,91390.0,91387.0,0.0656547]
[1767519808818,0.06438723,91390.0,91387.0,0.06561064]
[1767519809316,0.06438723,91390.0,91387.0,0.01094247]
[1767519809634,0.06431848,91390.0,91386.0,0.06565552]
[1767519810641,0.06431848,91390.0,91387.0,0.05471233]
[1767519810835,0.06431848,91390.0,91386.0,0.01094259]
[1767519811018,0.06565386,91389.0,91386.0,0.06565554]
[1767519813195,0.01094223,91389.0,91386.0,0.06565554]
[1767519813545,0.01094259,91386.0,91380.0,0.01094331]
[1767519813748,0.0656559,91387.0,91383.0,0.06565738]
[1767519814364,0.0656559,91387.0,91384.0,0.05471405]
[1767519814860,0.01094247,91387.0,91384.0,0.06565688]
[1767519816357,0.06565519,91388.0,91385.0,0.06565584]
[1767519816545,0.06565344,91389.0,91386.0,0.05471291]
[1767519816941,0.05471085,91390.0,91387.0,0.05471207]
[1767519817139,0.04904506,91389.0,91387.0,0.05466801]
[1767519818067,0.05471122,91389.0,91386.0,0.06565556]
[1767519819134,0.06565296,91390.0,91386.0,0.06565556]
[1767519819464,0.06565296,91390.0,91387.0,0.04660871]
[1767519821693,0.05471161,91389.0,91387.0,0.04660871]
[1767519821991,0.05471161,91389.0,91387.0,0.04560971]
[1767519822141,0.06565296,91390.0,91387.0,0.04560971]
[1767519822892,0.06558421,91390.0,91387.0,0.04560971]
[1767519823387,0.06565197,91391.0,91390.0,0.000999]
[1767519823605,0.05471104,91390.0,91388.0,0.04660871]
[1767519827858,0.05471104,91390.0,91387.0,0.06565464]
[1767519828407,0.06565315,91390.0,91387.0,0.01094247]
[1767519828592,0.01094211,91390.0,91387.0,0.11226346]
[1767519829385,0.01094211,91390.0,91387.0,0.05471228]
[1767519829581,0.06565277,91390.0,91387.0,0.05471228]
[1767519829775,0.06565277,91390.0,91387.0,0.06565475]
[1767519830204,0.06565277,91390.0,91387.0,0.01094247]
[1767519830420,0.01094223,91389.0,91383.0,0.01094295]
[1767519830594,0.06565341,91389.0,91384.0,0.05471404]
[1767519830799,0.06565341,91389.0,91384.0,0.10132275]
[1767519830800,0.06565462,91388.0,91384.0,0.10132275]
[1767519831533,0.06565462,91388.0,91384.0,0.05471404]
[1767519831728,0.05471248,91387.0,91384.0,0.05471404]
[1767519831882,0.06565495,91387.0,91384.0,0.06565682]
[1767519832077,0.06565495,91387.0,91384.0,0.01094283]
[1767519832321,0.06565517,91387.0,91384.0,0.05471407]
[1767519833081,0.06565421,91388.0,91384.0,0.0656569]
[1767519833743,0.01094247,91387.0,91383.0,0.01094295]
[1767519834040,0.01094259,91386.0,91382.0,0.06565739]
[1767519834336,0.06565636,91385.0,91382.0,0.01094307]
[1767519834713,0.01094283,91384.0,91381.0,0.02188]
[1767519834893,0.05471521,91383.0,91381.0,0.02188]
[1767519835095,0.05471537,91382.0,91381.0,0.02188]
[1767519835496,3.97e-06,91372.0,91356.0,0.09032871]
[1767519835719,0.03284525,91373.0,91368.0,0.0547232]
[1767519835919,0.0437894,91373.0,91372.0,0.0453827]
[1767519837676,0.05472075,91373.0,91372.0,0.0453827]
[1767519837952,0.05472032,91374.0,91372.0,0.0453827]
[1767519838581,0.05472075,91373.0,91372.0,0.0453827]
[1767519839810,0.05472255,91370.0,91369.0,0.02188]
[1767519840028,0.05465379,91370.0,91369.0,0.02188]
[1767519840228,0.05472255,91370.0,91369.0,0.02188]
[1767519840447,0.05472195,91371.0,91370.0,0.000999]
[1767519840626,0.05472255,91370.0,91369.0,0.06763608]
[1767519841533,0.05372355,91370.0,91369.0,0.06763608]
[1767519841749,0.05472195,91371.0,91370.0,0.04575608]
[1767519843049,0.05472195,91371.0,91368.0,0.02188]
[1767519843050,0.01194351,91370.0,91368.0,0.02188]
[1767519843247,0.05472315,91369.0,91365.0,0.05272899]
[1767519843466,0.01094831,91368.0,91364.0,0.06567125]
[1767519843643,0.01094831,91368.0,91367.0,0.05472098]
[1767519843644,0.01094475,91368.0,91367.0,0.05472098]
[1767519843984,0.01094523,91364.0,91361.0,0.02188]
[1767519844203,0.01034844,91364.0,91361.0,0.02188]
[1767519844353,0.05473081,91363.0,91361.0,0.02188]
[1767519844561,0.01094558,91361.0,91357.0,0.05670214]
[1767519844757,0.05472788,91362.0,91358.0,0.05670202]
[1767519844964,0.05472864,91360.0,91358.0,0.04575608]
[1767519845195,0.01094892,91363.0,91359.0,0.0567019]
[1767519845496,0.10945112,91362.0,91359.0,0.0567019]
[1767519845899,0.05472365,91362.0,91360.0,0.10048442]
[1767519846057,0.05472365,91362.0,91360.0,0.04571203]
[1767519847406,0.10945099,91362.0,91361.0,0.04575608]
[1767519847550,0.10945099,91362.0,91361.0,0.04475708]
[1767519848109,0.10945099,91362.0,91355.0,0.0109463]
[1767519848110,0.01094606,91357.0,91355.0,0.02188]
[1767519848248,0.06567501,91359.0,91356.0,0.04575608]
[1767519848449,0.06567501,91359.0,91356.0,0.10048696]
[1767519848693,0.05472845,91361.0,91357.0,0.05670214]
[1767519848694,0.0109457,91360.0,91357.0,0.05670214]
[1767519849319,0.05472872,91360.0,91357.0,0.05670214]
[1767519849520,0.06567403,91361.0,91360.0,0.01]
[1767519849694,0.06567403,91361.0,91358.0,0.05670202]
[1767519850100,0.05472854,91360.0,91358.0,0.04575608]
[1767519850346,0.01094773,91373.0,91370.0,0.04575608]
[1767519850632,0.01094403,91374.0,91369.0,0.11142364]
[1767519850934,0.04794535,91371.0,91364.0,0.16468505]
[1767519851082,0.04794535,91371.0,91367.0,0.01094487]
[1767519851290,0.0656664,91371.0,91367.0,0.0656691]
[1767519851688,0.0656664,91371.0,91367.0,0.06562505]
[1767519852234,0.0646674,91371.0,91367.0,0.06562505]
[1767519852635,0.000999,91367.0,91364.0,0.01094523]
[1767519852834,0.01094463,91369.0,91364.0,0.01094523]
[1767519852835,0.01094463,91369.0,91366.0,0.06566994]
[1767519853035,0.01094451,91370.0,91367.0,0.05472417]
[1767519853212,0.06566729,91370.0,91366.0,0.06566994]
[1767519853411,0.05472365,91369.0,91367.0,0.05472409]
[1767519854206,0.05472365,91369.0,91366.0,0.01094499]
[1767519854542,0.05472365,91369.0,91367.0,0.05472383]
[1767519854837,0.05472365,91369.0,91368.0,0.05472375]
[1767519855046,0.05472365,91369.0,91367.0,0.05472383]
[1767519855472,0.05472365,91369.0,91366.0,0.06566982]
[1767519855681,0.05472365,91369.0,91367.0,0.05472427]
[1767519856186,0.05472365,91369.0,91366.0,0.06577816]
[1767519856796,0.05472365,91369.0,91367.0,0.05472392]
[1767519857452,0.05472365,91369.0,91368.0,0.05472375]
[1767519857677,0.04472365,91369.0,91368.0,0.05472375]
[1767519858079,0.01094427,91372.0,91370.0,0.04575608]
[1767519858482,0.01094427,91372.0,91369.0,0.02094381]
[1767519858683,0.06566523,91373.0,91372.0,0.04575608]
[1767519858845,0.06566523,91373.0,91372.0,0.04475708]
[1767519860190,0.01094403,91374.0,91372.0,0.04475708]
[1767519860360,0.05472075,91373.0,91372.0,0.03475708]
[1767519861437,0.05472255,91370.0,91369.0,0.04575608]
[1767519861614,0.05472243,91371.0,91369.0,0.04575608]
[1767519861938,0.01094427,91372.0,91369.0,0.04575608]
[1767519862111,0.01094427,91372.0,91370.0,0.04575608]
[1767519863130,0.06566584,91372.0,91370.0,0.04575608]
[1767519863506,0.06566579,91372.0,91370.0,0.04575608]
[1767519863838,0.06566404,91375.0,91373.0,0.04575608]
[1767519864205,0.01094343,91379.0,91373.0,0.04575608]
[1767519864403,0.01094307,91382.0,91375.0,0.05471904]
[1767519864631,0.01094343,91379.0,91376.0,0.06566262]
[1767519864825,0.06466176,91379.0,91376.0,0.01094379]
[1767519864990,0.06466176,91379.0,91375.0,0.01094391]
[1767519865396,0.06466176,91379.0,91375.0,0.06566344]
[1767519865651,0.06466176,91379.0,91376.0,0.05471894]
[1767519866050,0.05471644,91381.0,91379.0,0.01]
[1767519866359,0.06565952,91382.0,91379.0,0.01]
[1767519866580,0.02188,91383.0,91380.0,0.06565952]
[1767519866786,0.06565682,91385.0,91382.0,0.05471537]
[1767519866993,0.05948524,91387.0,91383.0,0.05471417]
[1767519867359,0.06565385,91390.0,91386.0,0.05471248]
[1767519867594,0.01109167,91397.0,91390.0,0.06470944]
[1767519867761,0.0547078,91395.0,91391.0,0.0547099]
[1767519867967,0.0547078,91395.0,91391.0,0.0537109]
[1767519868169,0.06564931,91395.0,91390.0,0.06565155]
[1767519868367,0.06564931,91395.0,91388.0,0.05471131]
[1767519868368,0.04794535,91393.0,91386.0,0.19544574]
[1767519868568,0.06565081,91393.0,91390.0,0.01094211]
[1767519868774,0.01094163,91394.0,91391.0,0.05470998]
[1767519868975,0.06564984,91394.0,91391.0,0.04575608]
[1767519869560,0.01094163,91394.0,91392.0,0.04575608]
[1767519871296,0.06564949,91396.0,91393.0,0.04675414]
[1767519871653,0.06579814,91397.0,91394.0,0.04675414]
[1767519871854,0.05470704,91396.0,91394.0,0.04675414]
[1767519872056,0.05461893,91396.0,91394.0,0.04675414]
[1767519872479,0.01109167,91397.0,91394.0,0.04675414]
[1767519872683,0.06579853,91397.0,91394.0,0.04675414]
[1767519872898,0.05470756,91396.0,91394.0,0.04675414]
[1767519874612,0.05470758,91395.0,91394.0,0.04675414]
[1767519874814,0.05471113,91390.0,91387.0,0.04523907]
[1767519874959,0.06565174,91392.0,91387.0,0.05618154]
[1767519875154,0.06565219,91391.0,91387.0,0.11089284]
[1767519875402,0.06556362,91392.0,91388.0,0.11089273]
[1767519875597,0.05470818,91394.0,91389.0,0.06565339]
[1767519875774,0.05470881,91393.0,91390.0,0.05471017]
[1767519876080,0.01094175,91393.0,91390.0,0.01094211]
[1767519876255,0.06565146,91392.0,91389.0,0.04523907]
[1767519876456,0.01094175,91393.0,91389.0,0.04523907]
[1767519876457,0.01094175,91393.0,91390.0,0.06565266]
[1767519876911,0.06565022,91394.0,91390.0,0.06565266]
[1767519877327,0.01094163,91394.0,91391.0,0.06565174]
[1767519878464,0.01094175,91393.0,91390.0,0.06565267]
[1767519878687,0.01094175,91393.0,91389.0,0.0561813]
[1767519879019,0.0656485,91396.0,91393.0,0.010999]
[1767519879158,0.0656485,91396.0,91393.0,0.00995484]
[1767519879604,0.0656485,91396.0,91392.0,0.06565112]
[1767519879870,0.06564956,91395.0,91390.0,0.11089141]
[1767519880090,0.06564956,91395.0,91391.0,0.06565146]
[1767519880289,0.06564956,91395.0,91391.0,0.11089053]
[1767519880707,0.06564956,91395.0,91392.0,0.04523907]
[1767519881584,0.06564956,91395.0,91392.0,0.09994845]
[1767519882436,0.06564956,91395.0,91392.0,0.04523907]
[1767519882638,0.06564956,91395.0,91391.0,0.06565146]
[1767519882974,0.06565024,91394.0,91391.0,0.11089087]
[1767519883136,0.06564981,91394.0,91391.0,0.11089087]
[1767519883284,0.01094163,91394.0,91391.0,0.11089087]
[1767519884132,0.06564986,91394.0,91391.0,0.04523907]
[1767519884330,0.01094187,91392.0,91386.0,0.01094259]
[1767519884533,4.516e-05,91391.0,91388.0,0.06565401]
[1767519884757,0.01094187,91392.0,91388.0,0.06565401]
[1767519884963,0.06565103,91393.0,91389.0,0.06565286]
[1767519885259,0.06565058,91393.0,91389.0,0.01094223]
[1767519885395,0.05470962,91392.0,91389.0,0.11089239]
[1767519885846,0.06565058,91393.0,91389.0,0.11089239]
[1767519886015,0.06556247,91393.0,91389.0,0.11089239]
[1767519886212,0.05470968,91392.0,91389.0,0.11089239]
[1767519886426,0.06565155,91392.0,91389.0,0.0561813]
[1767519886649,0.01094187,91392.0,91389.0,0.1108922]
[1767519888287,0.06565166,91392.0,91389.0,0.1108922]
[1767519888686,0.01094187,91392.0,91389.0,0.1108922]
[1767519889186,0.06565131,91392.0,91389.0,0.0451939]
[1767519890354,0.05471038,91391.0,91389.0,0.0451939]
[1767519890553,0.05471058,91390.0,91389.0,0.0451939]
[1767519890756,0.05471038,91391.0,91390.0,0.000999]
[1767519890953,0.05471038,91391.0,91389.0,0.0451939]
[1767519891350,0.05471058,91390.0,91389.0,0.0451939]
[1767519891781,0.05471038,91391.0,91389.0,0.0451939]
[1767519891983,0.05471038,91391.0,91390.0,0.04523907]
[1767519893096,0.06565032,91394.0,91392.0,0.04523907]
[1767519893280,0.05470878,91393.0,91392.0,0.04523907]
[1767519893486,0.05470864,91394.0,91390.0,0.06565227]
[1767519893850,0.05470984,91392.0,91388.0,0.06565309]
[1767519894567,0.06465267,91393.0,91389.0,0.06565339]
[1767519894765,0.06465267,91393.0,91390.0,0.05471055]
[1767519894989,0.06465267,91393.0,91389.0,0.06565339]
[1767519895701,0.04900215,91392.0,91389.0,0.03130562]
[1767519896001,0.03904731,91392.0,91390.0,0.06565226]
[1767519896352,0.03904731,91392.0,91390.0,0.01094211]
[1767519896601,0.03904731,91392.0,91390.0,0.06565256]
[1767519897312,0.06565133,91392.0,91388.0,0.06565397]
[1767519898172,0.06565133,91392.0,91389.0,0.06565304]
[1767519898173,0.01094187,91392.0,91389.0,0.06565304]
[1767519898690,0.06565152,91392.0,91389.0,0.06565328]
[1767519898876,0.000999,91389.0,91388.0,0.06565397]
[1767519899391,0.06565138,91392.0,91389.0,0.054711]
[1767519899877,0.06565138,91392.0,91388.0,0.06565397]
[1767519900062,0.01094175,91393.0,91389.0,0.06565317]
[1767519900503,0.01094175,91393.0,91390.0,0.06565212]
[1767519900712,0.05485732,91397.0,91392.0,0.01094187]
[1767519900911,0.05470579,91398.0,91394.0,0.04715567]
[1767519901140,0.01094103,91399.0,91396.0,0.04715567]
[1767519901141,0.05470519,91399.0,91396.0,0.04715567]
[1767519901261,0.05470519,91399.0,91395.0,0.06564898]
[1767519901615,0.04695164,91397.0,91394.0,0.06564938]
[1767519901822,0.06564622,91399.0,91395.0,0.05809718]
[1767519902039,0.06564622,91399.0,91395.0,0.11280424]
[1767519902243,0.0547058,91398.0,91395.0,0.11280424]
[1767519902450,0.0547058,91398.0,91395.0,0.05809718]
[1767519902583,0.03282091,91400.0,91395.0,0.05809718]
[1767519902980,0.06564567,91400.0,91396.0,0.10186221]
[1767519903191,0.06564567,91400.0,91397.0,0.04715567]
[1767519903591,0.06564283,91404.0,91400.0,0.01094091]
[1767519903787,0.01094055,91403.0,91399.0,0.10186067]
[1767519903989,0.01094055,91403.0,91399.0,0.054705]
[1767519904227,0.01094055,91403.0,91400.0,0.06564497]
[1767519904441,0.06564281,91404.0,91400.0,0.06564497]
[1767519905200,0.06564281,91404.0,91401.0,0.05470393]
[1767519905399,0.01094079,91401.0,91393.0,0.05809742]
[1767519905636,0.02193979,91401.0,91395.0,0.06564866]
[1767519905842,0.01094115,91398.0,91395.0,0.01094151]
[1767519906140,0.01094115,91398.0,91391.0,0.22978051]
[1767519906141,0.01094223,91389.0,91388.0,0.02188]
[1767519906371,0.05471716,91379.0,91378.0,0.04715567]
[1767519906488,0.05471716,91379.0,91373.0,0.01094415]
[1767519906489,0.01094403,91374.0,91373.0,0.02188]
[1767519906689,0.06566153,91378.0,91372.0,0.02188]
[1767519906930,0.01094355,91378.0,91374.0,0.06566367]
[1767519907142,0.06566077,91379.0,91376.0,0.04715567]
[1767519907347,0.01094343,91379.0,91376.0,0.04715567]
[1767519907512,0.05471836,91377.0,91373.0,0.05472024]
[1767519907722,0.05471836,91377.0,91374.0,0.0580997]
[1767519908051,0.06566203,91377.0,91374.0,0.04715567]
[1767519908632,0.05471905,91376.0,91374.0,0.04715567]
[1767519908876,0.05471891,91377.0,91375.0,0.04715567]
[1767519909384,0.01094367,91377.0,91375.0,0.04715567]
[1767519910102,0.06566061,91379.0,91376.0,0.05471896]
[1767519910296,0.06566061,91379.0,91376.0,0.10187463]
[1767519910650,0.01094451,91370.0,91363.0,0.04715567]
[1767519911000,0.01094451,91370.0,91365.0,0.01172609]
[1767519911001,0.04363806,91368.0,91365.0,0.01172609]
[1767519911153,0.06566879,91368.0,91364.0,0.06567137]
[1767519911354,0.01094475,91368.0,91363.0,0.01094534]
[1767519911563,0.01094463,91369.0,91364.0,0.01094523]
[1767519911771,3.44e-06,91368.0,91364.0,0.06567123]
[1767519911991,0.05472435,91367.0,91363.0,0.01094534]
[1767519912651,3.44e-06,91368.0,91365.0,0.01094511]
[1767519913628,3.44e-06,91368.0,91367.0,0.05472435]
[1767519913835,0.06615361,91373.0,91369.0,0.01094463]
[1767519914610,0.06615361,91373.0,91370.0,0.04715567]
[1767519914991,0.01143235,91373.0,91371.0,0.04715567]
[1767519915438,0.06566234,91377.0,91376.0,0.04715567]
[1767519915630,0.01566234,91377.0,91373.0,0.01094415]
[1767519916564,0.02660601,91377.0,91373.0,0.01094415]
[1767519916741,0.01565864,91382.0,91379.0,0.04715567]
[1767519916956,0.05482424,91382.0,91378.0,0.05471717]
[1767519917351,0.0001083,91382.0,91380.0,0.05471643]
[1767519917935,0.0001083,91382.0,91381.0,0.07811353]
[1767519918862,0.05471121,91389.0,91386.0,0.01094259]
[1767519919083,0.000999,91386.0,91385.0,0.01094271]
[1767519919289,0.01094235,91388.0,91385.0,0.01094271]
[1767519919520,0.06565426,91388.0,91385.0,0.06565614]
[1767519919704,0.01094235,91388.0,91385.0,0.06565614]
[1767519920061,0.06565344,91389.0,91386.0,0.01094259]
[1767519921170,0.08753241,91391.0,91387.0,0.01094247]
[1767519921964,0.02188,91391.0,91388.0,0.0656541]
[1767519922336,0.02188,91391.0,91389.0,0.05471066]
[1767519922784,0.02188,91391.0,91390.0,0.05471058]
[1767519922942,0.02188,91391.0,91389.0,0.05371166]
[1767519923163,0.02188,91391.0,91390.0,0.05471058]
[1767519923381,0.05470871,91395.0,91391.0,0.05470939]
[1767519923569,0.06564954,91396.0,91392.0,0.06565065]
[1767519923971,0.05470779,91395.0,91392.0,0.06565065]
[1767519924252,0.0656493,91395.0,91392.0,0.01094187]
[1767519924465,0.06564954,91396.0,91392.0,0.06565114]
[1767519925012,0.06579831,91397.0,91394.0,0.01094163]
[1767519925212,0.05485679,91397.0,91396.0,0.000999]
[1767519925427,0.05485679,91397.0,91394.0,0.06564971]
[1767519925831,0.0001504,91397.0,91394.0,0.01094163]
[1767519926162,0.0001504,91397.0,91394.0,0.06564928]
[1767519926326,0.04695164,91396.0,91394.0,0.06564928]
[1767519926513,0.04610364,91396.0,91394.0,0.05470759]
[1767519927062,0.04610364,91396.0,91394.0,0.06564922]
[1767519927270,0.04610364,91396.0,91395.0,0.05470758]
[1767519927770,0.04610364,91396.0,91394.0,0.06564922]
[1767519928335,0.04610364,91396.0,91394.0,0.00994363]
[1767519928688,0.05470702,91396.0,91393.0,0.06564945]
[1767519929164,0.06564841,91396.0,91394.0,0.04715567]
[1767519929366,0.06564839,91397.0,91394.0,0.04715567]
[1767519929775,0.06564883,91396.0,91394.0,0.03715567]
[1767519929916,0.05470758,91395.0,91394.0,0.03715567]
[1767519932728,0.06564883,91396.0,91394.0,0.03715567]
[1767519932929,0.06464983,91396.0,91394.0,0.03715567]
[1767519933344,4e-07,91397.0,91395.0,0.10033244]
[1767519933545,4e-07,91397.0,91396.0,0.05470698]
[1767519934208,4e-07,91397.0,91396.0,0.10033236]
[1767519934547,4e-07,91397.0,91396.0,0.04562538]
[1767519934759,4e-07,91397.0,91396.0,0.04462638]
[1767519935113,0.05470679,91397.0,91396.0,0.04462638]
[1767519935622,0.04876738,91397.0,91394.0,0.06564931]
[1767519935907,0.04776838,91397.0,91393.0,0.21883514]
[1767519936104,0.04776838,91397.0,91396.0,0.05470698]
[1767519937142,0.08752609,91400.0,91397.0,0.05470634]
[1767519937351,0.03282091,91400.0,91397.0,0.05470634]
[1767519938088,0.03282091,91400.0,91398.0,0.05470578]
[1767519938309,0.02188,91400.0,91398.0,0.05470578]
[1767519938869,0.02188,91400.0,91399.0,0.05470519]
[1767519939069,0.02178967,91400.0,91399.0,0.05470519]
[1767519939283,0.01342022,91400.0,91399.0,0.05470519]
[1767519940355,1e-08,91400.0,91399.0,0.05470519]
[1767519942756,1e-08,91400.0,91399.0,0.04370619]
[1767519942965,1e-08,91400.0,91399.0,0.08933157]
[1767519943207,0.05470376,91402.0,91399.0,0.05656641]
[1767519943407,0.01094055,91403.0,91399.0,0.06564598]
[1767519943616,0.02188,91404.0,91402.0,0.05470286]
[1767519944396,0.02188,91404.0,91403.0,0.05470279]
[1767519946794,0.02188,91404.0,91402.0,0.05470286]
[1767519946973,0.02188,91404.0,91403.0,0.05470279]
[1767519947181,0.02188,91404.0,91401.0,0.06564459]
[1767519947582,0.08752307,91404.0,91400.0,0.06564536]
[1767519947784,0.08752307,91404.0,91401.0,0.05470373]
[1767519947985,0.08752307,91404.0,91400.0,0.06564536]
[1767519948794,0.08752307,91404.0,91401.0,0.0547039]
[1767519949041,0.04876698,91403.0,91401.0,0.0547039]
[1767519949185,0.02188,91404.0,91403.0,0.04662438]
[1767519949392,0.02188,91404.0,91403.0,0.000999]
[1767519949600,0.02188,91404.0,91401.0,0.01094079]